[Event "2nd Serbian League-Vojvodina 2023"]
[Site "Novi Sad"]
[Date "2023.11.02"]
[Round "1.1"]
[White "Samani, Yamac"]
[Black "Horvath, Zsolt"]
[Result "1/2-1/2"]
[ECO "B90"]
[WhiteElo "2349"]
[BlackElo "2377"]
[Annotator "ChessBase"]
[PlyCount "75"]
[EventDate "2023.10.22"]
[EventType "team-tourn"]
[EventCountry "SRB"]
[SourceTitle "playchess.com"]
[Source "ChessBase"]
[SourceQuality "1"]
[TimeControl "40/5400+30:1800+30"]

1. e4 {[%emt 0:00:21]} c5 {[%emt 0:01:03]} 2. Nf3 {[%emt 0:00:17]} d6 {[%emt 0:00:23]} 3. d4 {[%emt 0:00:26]} cxd4 {[%emt 0:00:09]} 4. Nxd4 {[%emt 0:00:17]} Nf6 {[%emt 0:00:07]} 5. Nc3 {[%emt 0:00:05]} a6 {[%emt 0:00:40]} 6. Rg1 {[%emt 0:02:41]} Nc6 {[%emt 0:04:53]} 7. g4 {[%emt 0:02:36]} Nxd4 {[%emt 0:26:56]} 8. Qxd4 {[%emt 0:00:13]} e5 {[%emt 0:00:12]} 9. Qa4+ {[%emt 0:11:36]} Bd7 {[%emt 0:03:34]} 10. Qb3 {[%emt 0:00:23]} Be6 {[%emt 0:10:46]} 11. Bc4 {[%emt 0:13:45]} Bxc4 {[%emt 0:03:15]} 12. Qxc4 {[%emt 0:00:13]} Rc8 {[%emt 0:04:03]} 13. Qd3 {[%emt 0:03:48]} Qc7 {[%emt 0:01:50]} 14. g5 {[%emt 0:10:52]} Nd7 {[%emt 0:00:34]} 15. Be3 {[%emt 0:00:21]} Qc4 {[%emt 0:01:44]} 16. O-O-O {[%emt 0:03:10]} Qxd3 {[%emt 0:03:09]} 17. Rxd3 {[%emt 0:01:09]} Nc5 {[%emt 0:01:54]} 18. Bxc5 {[%emt 0:03:14]} Rxc5 {[%emt 0:00:31]} 19. Nd5 {[%emt 0:01:48]} Be7 {[%emt 0:02:49]} 20. Rb3 {[%emt 0:04:44]} b5 {[%emt 0:00:36]} 21. Ra3 {[%emt 0:09:51]} Rc6 {[%emt 0:00:38]} 22. Rh3 {[%emt 0:01:55]} Bd8 {[%emt 0:05:39]} 23. c3 {[%emt 0:03:12]} a5 {[%emt 0:01:53]} 24. a3 {[%emt 0:00:19]} O-O {[%emt 0:08:08]} 25. Kc2 {[%emt 0:02:27]} f5 {[%emt 0:02:09]} 26. gxf6 {[%emt 0:00:52]} Bxf6 {[%emt 0:00:05]} 27. Rf3 {[%emt 0:02:35]} Bd8 {[%emt 0:00:43]} 28. Rxf8+ {[%emt 0:00:25]} Kxf8 {[%emt 0:00:04]} 29. Kd3 {[%emt 0:01:10]} Kf7 {[%emt 0:03:53]} 30. a4 {[%emt 0:01:04]} bxa4 {[%emt 0:00:50]} 31. Ra1 {[%emt 0:00:15]} Kg6 {[%emt 0:01:36]} 32. Rxa4 {[%emt 0:00:55]} Kg5 {[%emt 0:01:36]} 33. Ra1 {[%emt 0:01:26]} Kh4 {[%emt 0:01:53]} 34. b4 {[%emt 0:01:42]} Kh3 {[%emt 0:05:27]} 35. b5 {[%emt 0:01:33]} Rc8 {[%emt 0:00:07]} 36. Ra2 {[%emt 0:05:35]} Kxh2 {[%emt 0:01:38]} 37. f4+ {[%emt 0:06:10]} Kg3 {[%emt 0:00:06]} 38. fxe5 {[%emt 0:01:53]} 1/2-1/2

[Event "2nd Serbian League-Vojvodina 2023"]
[Site "Novi Sad"]
[Date "2023.11.02"]
[Round "1.2"]
[White "Szalai, Kornel"]
[Black "Alimpic, Aleksa"]
[Result "0-1"]
[ECO "A09"]
[WhiteElo "2383"]
[BlackElo "2290"]
[Annotator "ChessBase"]
[PlyCount "74"]
[EventDate "2023.10.22"]
[EventType "team-tourn"]
[EventCountry "SRB"]
[SourceTitle "playchess.com"]
[Source "ChessBase"]
[SourceQuality "1"]
[TimeControl "40/5400+30:1800+30"]

1. g3 {[%emt 0:00:23]} d5 {[%emt 0:00:11]} 2. Bg2 {[%emt 0:00:10]} e5 {[%emt 0:00:26]} 3. c4 {[%emt 0:00:31]} d4 {[%emt 0:00:19]} 4. d3 {[%emt 0:01:27]} Nc6 {[%emt 0:00:22]} 5. Nf3 {[%emt 0:00:31]} Bb4+ {[%emt 0:00:13]} 6. Nbd2 {[%emt 0:01:47]} a5 {[%emt 0:00:18]} 7. O-O {[%emt 0:04:36]} Nf6 {[%emt 0:00:21]} 8. Rb1 {[%emt 0:07:27]} a4 {[%emt 0:03:04]} 9. Ne1 {[%emt 0:21:08]} O-O {[%emt 0:02:42]} 10. Nc2 {[%emt 0:00:18]} Bd6 {[%emt 0:04:50]} 11. Nf3 {[%emt 0:09:58]} Re8 {[%emt 0:09:17]} 12. Bd2 {[%emt 0:01:35]} Bg4 {[%emt 0:06:13]} 13. Re1 {[%emt 0:14:43]} Qd7 {[%emt 0:02:43]} 14. Bg5 {[%emt 0:00:50]} Qf5 {[%emt 0:06:45]} 15. Qc1 {[%emt 0:07:08]} h6 {[%emt 0:07:51]} 16. e4 {[%emt 0:01:29]} Qg6 {[%emt 0:04:38]} 17. Bd2 {[%emt 0:01:00]} Nd7 {[%emt 0:04:58]} 18. Nh4 {[%emt 0:07:01]} Qf6 {[%emt 0:04:59]} 19. f3 {[%emt 0:07:19]} Be6 {[%emt 0:01:01]} 20. f4 {[%emt 0:00:31]} Nc5 {[%emt 0:04:24]} 21. Bf1 {[%emt 0:00:06]} exf4 {[%emt 0:05:22]} 22. Bxf4 {[%emt 0:00:05]} g5 {[%emt 0:01:19]} 23. Bxd6 {[%emt 0:02:09]} cxd6 {[%emt 0:00:09]} 24. Ng2 {[%emt 0:00:32]} Ne5 {[%emt 0:00:18]} 25. Rd1 {[%emt 0:00:15]} Bg4 {[%emt 0:02:21]} 26. Nxd4 {[%emt 0:00:11]} Bxd1 {[%emt 0:01:24]} 27. Qxd1 {[%emt 0:00:05]} Nexd3 {[%emt 0:01:22]} 28. Nf5 {[%emt 0:02:16]} Rxe4 {[%emt 0:01:56]} 29. Bxd3 {[%emt 0:04:28]} Nxd3 {[%emt 0:00:35]} 30. g4 {[%emt 0:01:40]} Ne5 {[%emt 0:04:11]} 31. Nge3 {[%emt 0:00:18]} Kh8 {[%emt 0:08:00]} 32. Qd5 {[%emt 0:00:23]} Rf4 {[%emt 0:00:47]} 33. h3 {[%emt 0:00:22]} Nf3+ {[%emt 0:01:04]} 34. Kh1 {[%emt 0:04:48]} Re8 {[%emt 0:01:20]} 35. Qb5 {[%emt 0:00:00]} Qe5 {[%emt 0:01:00]} 36. Qxe5+ {[%emt 0:00:00]} Rxe5 {[%emt 0:00:24]} 37. Rd1 {[%emt 0:00:00]} Rfxf5 {[%emt 0:01:37]} 0-1

[Event "2nd Serbian League-Vojvodina 2023"]
[Site "Novi Sad"]
[Date "2023.11.02"]
[Round "1.3"]
[White "Pajcin, Lav"]
[Black "Nadj Hedjesi, Balind"]
[Result "1/2-1/2"]
[ECO "C10"]
[WhiteElo "2109"]
[BlackElo "2227"]
[Annotator "ChessBase"]
[PlyCount "24"]
[EventDate "2023.10.22"]
[EventType "team-tourn"]
[EventCountry "SRB"]
[SourceTitle "playchess.com"]
[Source "ChessBase"]
[SourceQuality "1"]
[TimeControl "40/5400+30:1800+30"]

1. e4 {[%emt 0:00:03]} e6 {[%emt 0:00:11]} 2. d4 {[%emt 0:00:19]} d5 {[%emt 0:00:01]} 3. Nc3 {[%emt 0:00:29]} dxe4 {[%emt 0:00:06]} 4. Nxe4 {[%emt 0:00:14]} Bd7 {[%emt 0:00:08]} 5. Nf3 {[%emt 0:00:59]} Bc6 {[%emt 0:00:06]} 6. Bd3 {[%emt 0:00:27]} Nd7 {[%emt 0:00:09]} 7. O-O {[%emt 0:00:29]} Ngf6 {[%emt 0:00:30]} 8. Ng3 {[%emt 0:00:59]} b6 {[%emt 0:06:50]} 9. b3 {[%emt 0:04:29]} Be7 {[%emt 0:05:44]} 10. Bb2 {[%emt 0:00:07]} O-O {[%emt 0:00:48]} 11. Re1 {[%emt 0:00:38]} Bb7 {[%emt 0:02:05]} 12. Ne5 {[%emt 0:04:56]} c5 {[%emt 0:03:39]} 1/2-1/2

[Event "2nd Serbian League-Vojvodina 2023"]
[Site "Novi Sad"]
[Date "2023.11.02"]
[Round "1.4"]
[White "Farkas, Tibor"]
[Black "Gagic, Milan A"]
[Result "1/2-1/2"]
[ECO "B12"]
[WhiteElo "2210"]
[BlackElo "2164"]
[Annotator "ChessBase"]
[PlyCount "45"]
[EventDate "2023.10.22"]
[EventType "team-tourn"]
[EventCountry "SRB"]
[SourceTitle "playchess.com"]
[Source "ChessBase"]
[SourceQuality "1"]
[TimeControl "40/5400+30:1800+30"]

1. e4 {[%emt 0:00:06]} c6 {[%emt 0:00:17]} 2. d4 {[%emt 0:00:52]} d5 {[%emt 0:00:04]} 3. e5 {[%emt 0:05:10]} Bf5 {[%emt 0:00:20]} 4. Be3 {[%emt 0:02:30]} e6 {[%emt 0:01:56]} 5. Nd2 {[%emt 0:00:35]} Nd7 {[%emt 0:03:47]} 6. Be2 {[%emt 0:03:06]} a5 {[%emt 0:12:41]} 7. Ngf3 {[%emt 0:05:43]} a4 {[%emt 0:03:01]} 8. c3 {[%emt 0:02:54]} f6 {[%emt 0:06:49]} 9. O-O {[%emt 0:06:34]} fxe5 {[%emt 0:06:34]} 10. Nxe5 {[%emt 0:02:49]} Bd6 {[%emt 0:09:59]} 11. f4 {[%emt 0:04:51]} Ne7 {[%emt 0:01:30]} 12. Bh5+ {[%emt 0:08:30]} g6 {[%emt 0:04:20]} 13. Bf3 {[%emt 0:07:56]} Bxe5 {[%emt 0:05:45]} 14. dxe5 {[%emt 0:04:47]} Bd3 {[%emt 0:05:33]} 15. Be2 {[%emt 0:02:14]} Bxe2 {[%emt 0:02:25]} 16. Qxe2 {[%emt 0:00:03]} O-O {[%emt 0:00:38]} 17. Nf3 {[%emt 0:05:24]} Nf5 {[%emt 0:04:43]} 18. Bf2 {[%emt 0:01:12]} Qe7 {[%emt 0:01:15]} 19. h3 {[%emt 0:05:31]} Ng7 {[%emt 0:02:33]} 20. Qe3 {[%emt 0:04:03]} Nf5 {[%emt 0:01:44]} 21. Qe2 {[%emt 0:02:25]} Ng7 {[%emt 0:00:07]} 22. Qe3 {[%emt 0:01:48]} Nf5 {[%emt 0:02:20]} 23. Qe2 {[%emt 0:00:17]} 1/2-1/2

[Event "2nd Serbian League-Vojvodina 2023"]
[Site "Novi Sad"]
[Date "2023.11.02"]
[Round "1.5"]
[White "Pavkov, Nebojsa"]
[Black "Juhasz, Bence R"]
[Result "0-1"]
[ECO "B20"]
[WhiteElo "2199"]
[BlackElo "2210"]
[Annotator "ChessBase"]
[PlyCount "116"]
[EventDate "2023.10.22"]
[EventType "team-tourn"]
[EventCountry "SRB"]
[SourceTitle "playchess.com"]
[Source "ChessBase"]
[SourceQuality "1"]
[TimeControl "40/5400+30:1800+30"]

1. g3 {[%emt 0:03:13]} g6 {[%emt 0:00:10]} 2. Bg2 Bg7 3. e4 {[%emt 0:01:14]} c5 {[%emt 0:00:17]} 4. f4 {[%emt 0:00:20]} Nc6 {[%emt 0:00:24]} 5. d3 {[%emt 0:00:10]} d6 {[%emt 0:00:11]} 6. c3 {[%emt 0:00:04]} Nf6 {[%emt 0:03:32]} 7. Nd2 {[%emt 0:00:16]} O-O {[%emt 0:00:34]} 8. Nh3 {[%emt 0:01:38]} Ng4 {[%emt 0:05:11]} 9. Nf3 {[%emt 0:00:35]} b5 {[%emt 0:01:41]} 10. O-O {[%emt 0:02:54]} b4 {[%emt 0:02:46]} 11. Bd2 {[%emt 0:01:02]} Ba6 {[%emt 0:05:17]} 12. Nfg5 {[%emt 0:13:32]} h5 {[%emt 0:04:02]} 13. Nf2 {[%emt 0:21:49]} Nxf2 14. Rxf2 bxc3 {[%emt 1:13:25]} 15. bxc3 {[%emt 0:07:05]} Bxd3 {[%emt 0:00:00]} 16. g4 {[%emt 0:44:38]} h4 {[%emt 0:00:00]} 17. Qf3 {[%emt 0:00:00]} Bc4 {[%emt 0:01:30]} 18. Qh3 {[%emt 0:00:00]} f6 {[%emt 0:00:00]} 19. Nf3 {[%emt 0:00:00]} g5 {[%emt 0:00:00]} 20. fxg5 {[%emt 0:00:00]} fxg5 {[%emt 0:00:00]} 21. Nxg5 {[%emt 0:00:00]} Rxf2 {[%emt 0:00:00]} 22. Kxf2 {[%emt 0:00:00]} Qb6 {[%emt 0:00:00]} 23. Qxh4 {[%emt 0:00:00]} Qb2 {[%emt 0:00:00]} 24. Qh7+ {[%emt 0:00:00]} Kf8 {[%emt 0:00:00]} 25. Rd1 {[%emt 0:00:00]} Ne5 {[%emt 0:00:00]} 26. Kg3 {[%emt 0:00:00]} Qc2 {[%emt 0:00:00]} 27. Bf3 {[%emt 0:03:07]} Nxf3 {[%emt 0:00:00]} 28. Qf5+ {[%emt 0:01:38]} Ke8 {[%emt 0:00:00]} 29. Qxf3 {[%emt 0:00:06]} Kd7 {[%emt 0:00:00]} 30. Qf5+ {[%emt 0:02:09]} Kc7 {[%emt 0:00:00]} 31. Bf4 {[%emt 0:00:00]} Qxc3+ {[%emt 0:04:38]} 32. Kg2 {[%emt 0:00:21]} Bd4 {[%emt 0:00:24]} 33. Ne6+ {[%emt 0:00:24]} Bxe6 {[%emt 0:01:23]} 34. Qxe6 {[%emt 0:00:01]} Re8 {[%emt 0:00:16]} 35. Qb3 {[%emt 0:00:33]} Rb8 {[%emt 0:00:49]} 36. Qxc3 {[%emt 0:00:36]} Bxc3 {[%emt 0:00:01]} 37. Rd3 {[%emt 0:00:44]} Bg7 {[%emt 0:00:17]} 38. Rb3 {[%emt 0:00:34]} Rf8 {[%emt 0:00:23]} 39. Kg3 {[%emt 0:00:19]} c4 {[%emt 0:00:05]} 40. Rb4 {[%emt 0:00:31]} c3 {[%emt 0:00:30]} 41. a4 {[%emt 0:30:25]} Kd7 {[%emt 0:30:53]} 42. Rc4 {[%emt 0:00:35]} e6 {[%emt 0:00:31]} 43. g5 {[%emt 0:00:19]} d5 {[%emt 0:01:21]} 44. Rc7+ {[%emt 0:01:03]} Kd8 {[%emt 0:00:01]} 45. Bd6 {[%emt 0:00:26]} d4 {[%emt 0:01:21]} 46. Rxg7 {[%emt 0:00:34]} d3 {[%emt 0:00:10]} 47. Be7+ {[%emt 0:00:33]} Ke8 {[%emt 0:00:55]} 48. Bb4 {[%emt 0:00:29]} d2 {[%emt 0:00:19]} 49. Rxa7 {[%emt 0:00:29]} Rf3+ {[%emt 0:00:07]} 50. Kxf3 {[%emt 0:00:22]} d1=Q+ {[%emt 0:00:02]} 51. Kf4 {[%emt 0:00:32]} c2 {[%emt 0:00:47]} 52. Ba3 {[%emt 0:00:35]} Qd2+ {[%emt 0:00:26]} 53. Ke5 {[%emt 0:00:32]} Qc3+ {[%emt 0:00:09]} 54. Kxe6 {[%emt 0:00:14]} Qb3+ {[%emt 0:00:05]} 55. Kf5 {[%emt 0:00:46]} Qxa3 {[%emt 0:00:06]} 56. Ra8+ {[%emt 0:00:17]} Kd7 {[%emt 0:00:07]} 57. g6 {[%emt 0:00:45]} c1=Q {[%emt 0:00:18]} 58. g7 {[%emt 0:00:19]} Qf3+ {[%emt 0:00:16]} 0-1

[Event "2nd Serbian League-Vojvodina 2023"]
[Site "Novi Sad"]
[Date "2023.11.02"]
[Round "1.6"]
[White "Kecskemeti, Arpad"]
[Black "Cica, Dragan"]
[Result "1-0"]
[ECO "B80"]
[WhiteElo "2185"]
[BlackElo "2125"]
[Annotator "ChessBase"]
[PlyCount "85"]
[EventDate "2023.10.22"]
[EventType "team-tourn"]
[EventCountry "SRB"]
[SourceTitle "playchess.com"]
[Source "ChessBase"]
[SourceQuality "1"]
[TimeControl "40/5400+30:1800+30"]

1. e4 {[%emt 0:00:03]} c5 {[%emt 0:00:00]} 2. Nf3 d6 {[%emt 1:31:30]} 3. d4 {[%emt 0:00:09]} cxd4 {[%emt 0:00:30]} 4. Nxd4 {[%emt 1:32:18]} Nf6 {[%emt 0:00:30]} 5. Nc3 a6 {[%emt 0:00:00]} 6. Be3 e6 {[%emt 0:01:00]} 7. f3 {[%emt 0:01:30]} b5 {[%emt 0:00:30]} 8. Qd2 {[%emt 0:00:30]} Bb7 {[%emt 0:00:30]} 9. g4 {[%emt 0:00:30]} Nc6 {[%emt 0:00:30]} 10. Nxc6 {[%emt 0:00:00]} Bxc6 {[%emt 0:00:30]} 11. O-O-O {[%emt 0:01:00]} Rc8 {[%emt 0:00:30]} 12. Kb1 {[%emt 0:00:30]} b4 {[%emt 0:00:30]} 13. Ne2 {[%emt 0:00:30]} Nxe4 {[%emt 0:00:30]} 14. fxe4 {[%emt 0:00:30]} Bxe4 {[%emt 0:00:30]} 15. Nd4 {[%emt 0:00:30]} Bxh1 {[%emt 0:00:00]} 16. Bxa6 Rc5 {[%emt 0:00:00]} 17. Nxe6 {[%emt 0:00:00]} fxe6 {[%emt 0:00:00]} 18. Bxc5 {[%emt 0:00:00]} Qa5 {[%emt 0:02:00]} 19. Bxb4 {[%emt 0:02:00]} Qxa6 {[%emt 0:00:30]} 20. Rxh1 {[%emt 0:00:30]} Be7 {[%emt 0:00:30]} 21. Re1 {[%emt 0:00:30]} e5 {[%emt 0:00:30]} 22. Qd5 {[%emt 0:00:00]} Rf8 {[%emt 0:00:00]} 23. a3 {[%emt 0:00:00]} Rf1 {[%emt 0:00:00]} 24. Qg8+ Kd7 {[%emt 0:00:00]} 25. Qxh7 {[%emt 0:00:00]} Rxe1+ {[%emt 0:00:00]} 26. Bxe1 Qe2 {[%emt 0:00:00]} 27. Qf5+ {[%emt 0:00:00]} Kc6 {[%emt 0:00:00]} 28. Bb4 e4 {[%emt 0:03:30]} 29. a4 {[%emt 0:00:00]} e3 {[%emt 0:00:00]} 30. Qc8+ {[%emt 0:00:00]} Kd5 31. Qg8+ {[%emt 0:00:00]} Ke5 32. Qxg7+ {[%emt 0:05:30]} Ke6 {[%emt 0:00:00]} 33. Qg6+ Kd7 {[%emt 0:00:00]} 34. Qf5+ {[%emt 0:00:00]} Ke8 {[%emt 0:00:00]} 35. Qb5+ {[%emt 0:00:00]} Qxb5 36. axb5 {[%emt 0:00:00]} Bh4 37. Bxd6 {[%emt 0:02:30]} Kd7 {[%emt 0:00:00]} 38. Bb4 {[%emt 0:00:00]} e2 {[%emt 0:00:00]} 39. c4 e1=Q+ {[%emt 0:05:30]} 40. Bxe1 {[%emt 0:01:30]} Bxe1 {[%emt 0:00:30]} 41. Kc2 {[%emt 0:30:30]} Kd6 {[%emt 0:15:16]} 42. Kd3 {[%emt 0:00:30]} Kc5 {[%emt 0:00:53]} 43. g5 {[%emt 0:00:00]} 1-0

[Event "2nd Serbian League-Vojvodina 2023"]
[Site "Novi Sad"]
[Date "2023.11.02"]
[Round "1.7"]
[White "Skvortsov, Andrei"]
[Black "Agdelen, Huseyin Can"]
[Result "1/2-1/2"]
[ECO "C88"]
[WhiteElo "2294"]
[BlackElo "2401"]
[Annotator "ChessBase"]
[PlyCount "70"]
[EventDate "2023.10.22"]
[EventType "team-tourn"]
[EventCountry "SRB"]
[SourceTitle "playchess.com"]
[Source "ChessBase"]
[SourceQuality "1"]
[TimeControl "40/5400+30:1800+30"]

1. e4 {[%emt 0:00:04]} e5 {[%emt 0:00:08]} 2. Nf3 {[%emt 0:01:01]} Nc6 {[%emt 0:00:29]} 3. Bb5 {[%emt 0:01:02]} a6 {[%emt 0:03:31]} 4. Ba4 {[%emt 0:00:12]} Nf6 {[%emt 0:01:35]} 5. O-O {[%emt 0:00:20]} Be7 {[%emt 0:02:14]} 6. Re1 {[%emt 0:03:04]} b5 {[%emt 0:00:35]} 7. Bb3 {[%emt 0:00:02]} O-O {[%emt 0:00:23]} 8. Nc3 {[%emt 0:05:40]} d6 {[%emt 0:05:40]} 9. a4 {[%emt 0:01:33]} b4 {[%emt 0:32:54]} 10. Nd5 {[%emt 0:00:07]} Na5 {[%emt 0:00:30]} 11. Ba2 Nxd5 {[%emt 0:06:11]} 12. exd5 Bg4 {[%emt 0:07:05]} 13. d4 {[%emt 0:07:38]} exd4 {[%emt 0:04:14]} 14. Qxd4 {[%emt 0:00:45]} Bxf3 {[%emt 0:00:08]} 15. gxf3 {[%emt 0:00:10]} Rb8 {[%emt 0:00:54]} 16. Qd3 {[%emt 0:00:40]} Nb7 {[%emt 0:13:40]} 17. Qxa6 {[%emt 0:00:51]} Nc5 {[%emt 0:00:09]} 18. Qe2 {[%emt 0:00:12]} Bf6 {[%emt 0:00:08]} 19. Bc4 {[%emt 1:16:39]} Bd4 {[%emt 0:06:28]} 20. a5 {[%emt 0:00:00]} Qh4 {[%emt 0:13:34]} 21. f4 {[%emt 0:01:00]} Ne4 {[%emt 0:00:00]} 22. Be3 {[%emt 0:00:00]} Bxb2 {[%emt 0:00:00]} 23. a6 {[%emt 0:00:00]} Bxa1 {[%emt 0:00:00]} 24. Rxa1 {[%emt 0:00:00]} Qf6 {[%emt 0:00:00]} 25. Ra5 {[%emt 0:00:00]} Qg6+ {[%emt 0:00:00]} 26. Kf1 {[%emt 0:00:00]} Nc3 {[%emt 0:00:00]} 27. Qd3 {[%emt 0:00:00]} Qh5 {[%emt 0:03:30]} 28. Kg2 {[%emt 0:00:00]} Qg4+ {[%emt 0:00:00]} 29. Kh1 {[%emt 0:00:00]} Qf3+ {[%emt 0:00:00]} 30. Kg1 {[%emt 0:04:30]} Rbe8 {[%emt 0:00:00]} 31. a7 {[%emt 0:00:00]} f5 {[%emt 0:00:00]} 32. Qf1 {[%emt 0:00:00]} Qg4+ {[%emt 0:01:26]} 33. Kh1 {[%emt 0:00:00]} Qf3+ {[%emt 0:00:02]} 34. Kg1 {[%emt 0:02:00]} Qg4+ {[%emt 0:01:28]} 35. Kh1 {[%emt 0:00:00]} Qf3+ {[%emt 0:00:23]} 1/2-1/2

[Event "2nd Serbian League-Vojvodina 2023"]
[Site "Novi Sad"]
[Date "2023.11.02"]
[Round "1.8"]
[White "Lalic, Bogdan"]
[Black "Levitan, Caleb Levi"]
[Result "1-0"]
[ECO "E10"]
[WhiteElo "2345"]
[BlackElo "2219"]
[Annotator "ChessBase"]
[PlyCount "117"]
[EventDate "2023.10.22"]
[EventType "team-tourn"]
[EventCountry "SRB"]
[SourceTitle "playchess.com"]
[Source "ChessBase"]
[SourceQuality "1"]
[TimeControl "40/5400+30:1800+30"]

1. c4 {[%emt 0:05:17]} c5 {[%emt 1:31:00]} 2. Nf3 {[%emt 1:26:13]} Nc6 {[%emt 0:00:30]} 3. Nc3 {[%emt 0:00:30]} e5 {[%emt 0:00:00]} 4. e3 {[%emt 0:00:30]} Nf6 {[%emt 0:01:00]} 5. Be2 {[%emt 0:00:30]} Be7 {[%emt 0:00:30]} 6. d4 {[%emt 0:00:30]} d6 {[%emt 0:00:30]} 7. d5 {[%emt 0:00:30]} Nb8 {[%emt 0:00:30]} 8. e4 {[%emt 0:00:30]} O-O {[%emt 0:00:30]} 9. O-O {[%emt 0:00:30]} Ne8 {[%emt 0:00:30]} 10. Ne1 {[%emt 0:00:30]} f5 {[%emt 0:00:30]} 11. exf5 {[%emt 0:00:00]} Bxf5 12. Bd3 {[%emt 0:01:00]} Bxd3 {[%emt 0:01:00]} 13. Nxd3 {[%emt 0:00:30]} Bg5 {[%emt 0:00:30]} 14. f4 {[%emt 0:00:30]} exf4 {[%emt 0:00:30]} 15. Bxf4 {[%emt 0:00:30]} Nd7 {[%emt 0:00:30]} 16. Ne4 {[%emt 0:00:30]} Bxf4 17. Nxf4 {[%emt 0:00:00]} Qe7 {[%emt 0:01:00]} 18. Qc2 {[%emt 0:01:00]} Nc7 {[%emt 0:00:30]} 19. Rae1 {[%emt 0:00:00]} Ne5 {[%emt 0:00:30]} 20. Qc3 {[%emt 0:01:00]} Rae8 {[%emt 0:00:30]} 21. b3 {[%emt 0:00:30]} b5 {[%emt 0:00:30]} 22. Qg3 {[%emt 0:00:30]} bxc4 {[%emt 0:00:30]} 23. bxc4 {[%emt 0:00:30]} h6 {[%emt 0:00:30]} 24. Nh5 {[%emt 0:00:30]} Rxf1+ {[%emt 0:00:00]} 25. Rxf1 {[%emt 0:00:30]} Rd8 {[%emt 0:01:00]} 26. Nxd6 {[%emt 0:00:00]} Rxd6 27. Re1 {[%emt 0:00:00]} Rb6 {[%emt 0:00:00]} 28. Qxe5 {[%emt 0:00:00]} Qxe5 29. Rxe5 {[%emt 0:00:00]} Kf7 30. Nxg7 {[%emt 0:00:00]} Rb1+ 31. Kf2 {[%emt 0:03:00]} Rb2+ {[%emt 0:00:00]} 32. Kf3 {[%emt 0:00:00]} Kxg7 33. Re7+ {[%emt 0:00:00]} Kf6 {[%emt 0:00:00]} 34. Rxc7 {[%emt 0:00:00]} Rxa2 35. Rxc5 {[%emt 0:00:00]} Ke5 36. Rc6 {[%emt 0:00:00]} h5 {[%emt 0:05:30]} 37. Kg3 {[%emt 0:03:00]} a5 {[%emt 0:00:00]} 38. d6 {[%emt 0:00:00]} Ke6 39. c5 {[%emt 0:01:00]} a4 {[%emt 0:01:30]} 40. Ra6 {[%emt 0:00:30]} Ra3+ {[%emt 0:00:00]} 41. Kh4 {[%emt 0:02:08]} Ra2 42. Kh3 {[%emt 0:28:52]} Ra3+ {[%emt 0:31:30]} 43. g3 {[%emt 0:00:30]} Ra2 {[%emt 0:00:30]} 44. Ra7 {[%emt 0:00:00]} Rc2 {[%emt 0:00:00]} 45. Rxa4 Rxc5 {[%emt 0:00:00]} 46. Rd4 {[%emt 0:00:00]} Kd7 47. Kh4 {[%emt 0:00:00]} Re5 48. h3 {[%emt 0:00:00]} Ra5 49. g4 {[%emt 0:00:00]} hxg4 50. hxg4 {[%emt 0:00:00]} Ra8 51. g5 {[%emt 0:00:00]} Ke6 52. d7 {[%emt 0:04:30]} Rd8 53. Kh5 {[%emt 0:00:30]} Kf7 {[%emt 0:00:00]} 54. g6+ {[%emt 0:00:00]} Kf6 {[%emt 0:00:00]} 55. Rf4+ {[%emt 0:00:00]} Ke6 {[%emt 0:00:00]} 56. Rf7 Rh8+ {[%emt 0:00:00]} 57. Rh7 {[%emt 0:00:00]} Rg8 58. g7 {[%emt 0:02:30]} Kxd7 {[%emt 0:00:00]} 59. Kg6 {[%emt 0:00:00]} 1-0

[Event "2nd Serbian League-Vojvodina 2023"]
[Site "Novi Sad"]
[Date "2023.11.02"]
[Round "1.9"]
[White "Ljepic, Andrej"]
[Black "Grujic, Zoran"]
[Result "1/2-1/2"]
[ECO "B50"]
[WhiteElo "2236"]
[BlackElo "2315"]
[Annotator "ChessBase"]
[PlyCount "63"]
[EventDate "2023.10.22"]
[EventType "team-tourn"]
[EventCountry "SRB"]
[SourceTitle "playchess.com"]
[Source "ChessBase"]
[SourceQuality "1"]
[TimeControl "40/5400+30:1800+30"]

1. e4 {[%emt 0:02:08]} c5 {[%emt 0:00:09]} 2. Nf3 {[%emt 0:00:15]} d6 {[%emt 0:00:37]} 3. c3 {[%emt 0:00:18]} Nf6 {[%emt 0:00:06]} 4. h3 {[%emt 0:00:42]} Nc6 {[%emt 0:00:18]} 5. Bd3 {[%emt 0:00:16]} e5 {[%emt 0:00:32]} 6. Bc2 {[%emt 0:00:24]} d5 {[%emt 0:01:30]} 7. d3 {[%emt 0:00:57]} h6 {[%emt 0:04:39]} 8. O-O {[%emt 0:04:16]} d4 {[%emt 0:09:46]} 9. Ba4 {[%emt 0:04:51]} Nd7 {[%emt 0:07:02]} 10. b4 {[%emt 0:07:17]} dxc3 {[%emt 0:03:46]} 11. Nxc3 {[%emt 0:09:56]} cxb4 {[%emt 0:01:02]} 12. Nd5 {[%emt 0:03:02]} Bd6 13. Bd2 {[%emt 0:15:15]} O-O {[%emt 0:04:40]} 14. Bxc6 {[%emt 0:09:02]} bxc6 {[%emt 0:00:08]} 15. Nxb4 {[%emt 0:01:32]} Bb7 {[%emt 0:01:21]} 16. Bc3 {[%emt 0:01:34]} a5 {[%emt 0:02:39]} 17. Nc2 {[%emt 0:00:25]} Re8 {[%emt 0:03:44]} 18. Ne3 {[%emt 0:00:32]} Ba6 {[%emt 0:57:31]} 19. Nc4 {[%emt 0:08:58]} Bc7 {[%emt 0:00:00]} 20. Qc2 {[%emt 0:03:20]} Bxc4 {[%emt 0:00:00]} 21. dxc4 {[%emt 0:00:06]} Nc5 {[%emt 0:00:00]} 22. Rfd1 {[%emt 0:01:50]} Qf6 {[%emt 0:00:00]} 23. Rab1 {[%emt 0:09:49]} Qg6 {[%emt 0:00:00]} 24. Re1 {[%emt 0:01:00]} Rad8 {[%emt 0:00:00]} 25. Re3 {[%emt 0:00:50]} Qf6 {[%emt 0:00:00]} 26. Ree1 {[%emt 0:07:14]} Nd3 {[%emt 0:00:00]} 27. Re3 {[%emt 0:00:52]} Nf4 {[%emt 0:00:00]} 28. Kh2 {[%emt 0:02:11]} Ne6 {[%emt 0:00:00]} 29. Kg1 {[%emt 0:03:00]} Nf4 {[%emt 0:00:00]} 30. Kh2 {[%emt 0:00:13]} Ne6 {[%emt 0:00:00]} 31. Kg1 {[%emt 0:00:19]} Nf4 {[%emt 0:00:00]} 32. Kh2 {[%emt 0:00:50]} 1/2-1/2